Workbook

Sheet Sheet1
A1: Item number | B1: Description | C1: Pack | D1: 2025 Each Price | E1: 2025 Case Price
A2: AB200-A | B2: "Apples" Banner 3' x 15' weatherproof | C2: 1 | D2: 41.95 | E2: =D2*C2 -> 41.95
A3: BC04601 | B3: Crows - Small - 6" H Assortment contains 4 each of 3 poses | C3: 12 | D3: 3.45 | E3: 41.4
A4: BD12113 | B4: 13" Buddies In A Bale, 6 assorted | C4: 24 | D4: 0.7 | E4: 16.8
A5: BD12213 | B5: 13" Crows In A Bale- 3 assorted | C5: 24 | D5: 0.75 | E5: 18
A6: BD18012 | B6: 12" HALLOWEEN PICKS IN BALE 2 ASST | C6: 24 | D6: 0.8 | E6: 19.2
A7: BD24009 | B7: 9" SCARECROW BASKET | C7: 12 | D7: 2.35 | E7: 28.2
A8: BO24007 | B8: 7" STANDING OWL W/ LED EYES 2/S | C8: 4 | D8: 4.95 | E8: 19.8
A9: BS12124 | B9: 24" Silky Boo Stakes, 3 assorted | C9: 24 | D9: 1.25 | E9: 30
A10: BSK15001 | B10: SMALL BASKET NATURAL 24/case | C10: 24 | D10: 2.5 | E10: 60
A11: BSK15002 | B11: SMALL BASKET ORANGE 24/case | C11: 24 | D11: 2.6 | E11: 62.4
A12: BSK15003 | B12: LARGE BASKET W/ PUMPKIN FACE 24/case | C12: 24 | D12: 4.65 | E12: 111.6
A13: BSK24003 | B13: LARGE BASKET NATURAL 24/case | C13: 24 | D13: 4.55 | E13: 109.2
A14: BW740SFA | B14: SATIN FALL BOW ASSORTMENT, ASSORTED | C14: 24 | D14: 2.2 | E14: 52.8
A15: BW740WFA | B15: WIRED FALL BOW ASSORTMENT, 3 ASSORTED | C15: 24 | D15: 3.5 | E15: 84
A16: BW740WHA | B16: Wired Halloween Bow Asst NEW ASST | C16: 24 | D16: 3.5 | E16: 84
A17: CBPP1 | B17: The Pumpkin Patch Twins Adventure Coloring Book | C17: 250 | D17: 0.3 | E17: 75
A18: CBPP4 | B18: Vintage Coloring Book | C18: 250 | D18: 0.3 | E18: 75
A19: CD23136 | B19: 36" Crows in a Crate 4/s | C19: 32 | D19: 3.5 | E19: 112
A20: CD24036 | B20: 36" SCARECROW IN A CRATE 4/S | C20: 32 | D20: 3.5 | E20: 112
A21: CD25036 | B21: 36" scarecrow in crate 4/S | C21: 32 | D21: 3.5 | E21: 112
A22: CH2BCD | B22: 2 pack LED white light | C22: 12 | D22: 2.5 | E22: 30
A23: CH350 | B23: Sure Grip Candles - 3 candles per card | C23: 24 | D23: 3.5 | E23: 84
A24: CH410 | B24: Pumpkin Magic LED Light Color changing LED light, 24ct | C24: 24 | D24: 1 | E24: 24
A25: ET14001 | B25: Light Up Ring | C25: 48 | D25: 0.8 | E25: 38.4
A26: ET14002 | B26: Light up bracelet | C26: 24 | D26: 1.55 | E26: 37.2
A27: ET14003 | B27: Flashing strobe- PUMPKIN | C27: 24 | D27: 2.15 | E27: 51.6
A28: ET16003 | B28: LIGHT UP NECKLACE 3 asst J50918 | C28: 24 | D28: 1.75 | E28: 42
A29: ET20001 | B29: LIGHT UP GHOST ASST COLORS 4/S | C29: 24 | D29: 2.05 | E29: 49.2
A30: ET23003 | B30: 3" PUFFER GHOST AND PUMPKIN | C30: 24 | D30: 1.15 | E30: 27.6
A31: FS2401 | B31: APPLES CORRUGATED SIGN | C31: 1 | D31: 12.95 | E31: 12.95
A32: FS2402 | B32: CIDER CORRUGATED SIGN | C32: 1 | D32: 12.95 | E32: 12.95
A33: FS2403 | B33: HAYRIDES CORRUGATED SIGN | C33: 1 | D33: 12.95 | E33: 12.95
A34: FS2404 | B34: PUMPKINS CORRUGATED SIGN | C34: 1 | D34: 12.95 | E34: 12.95
A35: GD13118 | B35: 18" Ghosts Picks In A Bale- GL11290B | C35: 24 | D35: 0.9 | E35: 21.6
A36: GL14003 | B36: GID Teeth New package - BLISTER CARD FOR 2017 | C36: 24 | D36: 1.05 | E36: 25.2
A37: GS18101 | B37: 2018 Ghoul Stand | C37: 1 | D37: 7.95 | E37: 7.95
A38: HB00621C | B38: Colorful hanging bat, 3 assorted colors, 21" wide | C38: 12 | D38: 2.75 | E38: 33
A39: HB14001 | B39: Enter If You Dare Banner | C39: 1 | D39: 17 | E39: 17
A40: HB2309 | B40: 9" LED TREAT BAG 2/S | C40: 12 | D40: 4.15 | E40: 49.8
A41: HB24013 | B41: 13" HANGING BAT W/ LED EYES | C41: 12 | D41: 2.8 | E41: 33.6
A42: HB250 | B42: Halloween Retail T-Shirt Bags 12" x 8" x 24" Orange and Black | C42: 1000 | D42: 0.06 | E42: 60
A43: HG19017 | B43: 17" HANGING GHOULS 3/S | C43: 24 | D43: =E43/C43 -> 1.05 | E43: 25.2
A44: HG21062 | B44: 62" HANGING GHOST W/ HAT & LED EYES | C44: 3 | D44: 12.95 | E44: =C44*D44 -> 38.85
A45: HG24041 | B45: 41" HANGING GHOUL W/ LED LIGHT & SOUND | C45: 4 | D45: 7.25 | E45: =C45*D45 -> 29
A46: HG24043 | B46: 43" HANGING GHOST WITH LIGHTS | C46: 6 | D46: 8.5 | E46: =C46*D46 -> 51
A47: HG24066 | B47: 66" HANGING GHOUL W/ LIGHTS | C47: 4 | D47: 14.95 | E47: =D47*C47 -> 59.8
A48: HG24074 | B48: 74" WHITE HANGING GHOUL W/ LED EYES | C48: 4 | D48: 13.95 | E48: =C48*D48 -> 55.8
A49: HG25015 | B49: 15" HALLOWEEN HANGERS 3/S | C49: 24 | D49: 1.5 | E49: =D49*C49 -> 36
A50: HG25028 | B50: 28" HALLOWEEN HANGERS | C50: 12 | D50: 2.25 | E50: =D50*C50 -> 27
A51: HG25030 | B51: 30" HALLOWEEN HANGERS 3/S | C51: 12 | D51: 2.25 | E51: =D51*C51 -> 27
A52: HG25043 | B52: SET OF 3 48" GHOSTS IN POLY BAG | C52: 8 | D52: 8.95 | E52: =C52*D52 -> 71.6
A53: HG25045 | B53: 45" HALLOWEEN HANGERS | C53: 12 | D53: 4.95 | E53: =D53*C53 -> 59.4
A54: HG25048 | B54: 48" HANGING GHOUL W/ RED EYES 2/S | C54: 6 | D54: 6.95 | E54: =C54*D54 -> 41.7
A55: HG25071 | B55: 71" HANGING BLACK GHOUL SOUND/SHAKER | C55: 4 | D55: 18 | E55: =C55*D55 -> 72
A56: HG25090 | B56: 90" HANGING WHITE GHOUL | C56: 6 | D56: 7.5 | E56: =C56*D56 -> 45
A57: HG260 | B57: 30" Ghost Wind Chimes, 3 assorted | C57: 12 | D57: 3.25 | E57: =D57*C57 -> 39
A58: HG263 | B58: 48" Halloween Wind Chimes, 2 assorted | C58: 12 | D58: 5.95 | E58: 71.4
A59: HM20005 | B59: 5" METAL JACK O LANTERN 3/S | C59: 12 | D59: 2.75 | E59: 33
A60: HM20012 | B60: 12" METAL HARVEST TRUCK 2/S ORANGE & GREEN | C60: 6 | D60: 7.95 | E60: 47.7
A61: HM20314 | B61: 14" METAL SPOOKY EYES PICK 2/S | C61: 24 | D61: 1.5 | E61: 36
A62: HM21124 | B62: 24" Metal Witch Leg Stake 2/S | C62: 12 | D62: 3.25 | E62: 39
A63: HM22014 | B63: 14" PUMPKIN FACE PICK 3/S | C63: 24 | D63: 1.75 | E63: 42
A64: HM22024 | B64: 24" HARVEST GNOME STAKE 2/S | C64: 12 | D64: 5.75 | E64: 69
A65: HM23007 | B65: 7" HARVEST JARS 3/S | C65: 6 | D65: 4.4 | E65: 26.4
A66: HM24018 | B66: 18" Harvest Pick 3/S | C66: 24 | D66: 2.25 | E66: 54
A67: HM24020 | B67: 20" Cat & Ghost Stake | C67: 24 | D67: 2.35 | E67: 56.4
A68: HM24028 | B68: 28" Halloween Gnome Stake 2/S | C68: 6 | D68: 7.45 | E68: 44.7
A69: HM24029 | B69: 29" HARVEST GNOME STAKE 2/S | C69: 12 | D69: 7.95 | E69: 95.4
A70: HM24034 | B70: 34" Skeleton/Pumpkin Stake | C70: 6 | D70: 10.95 | E70: 65.7
A71: HM24136 | B71: 36" SUNFLOWER STAKE 3/S | C71: 6 | D71: 5.95 | E71: 35.7
A72: HM24229 | B72: 29" Ghost "BOO" Stake | C72: 6 | D72: 10.95 | E72: 65.7
A73: HM24336 | B73: 36" SCARECROW STAKE 2/S | C73: 8 | D73: 7.25 | E73: 58
A74: HM25010 | B74: 10" SPIDER PUMPKIN HOLDER | C74: 12 | D74: 3.5 | E74: 42
A75: HM25012 | B75: 12" STANDING PUMPKIN 2/S | C75: 4 | D75: 10.5 | E75: 42
A76: HM25014 | B76: 14" HARVEST PICKS 3/S | C76: 24 | D76: 1.65 | E76: 39.6
A77: HM25024 | B77: 24" Halloween Pick 3/S | C77: 24 | D77: 2.15 | E77: 51.6
A78: HM25028 | B78: 28" GHOST STAKE 3/S | C78: 12 | D78: 5.25 | E78: 63
A79: HM25032 | B79: 32" STANDING HALLOWEEN FIGURE 2/S | C79: 6 | D79: 11.95 | E79: 71.7
A80: HM25036 | B80: 36" STACKING PUMPKIN STAKE 1/S | C80: 6 | D80: 10.95 | E80: 65.7
A81: HM25037 | B81: 37" STACKING PUMPIN STAKE | C81: 6 | D81: 10.95 | E81: 65.7
A82: HM25038 | B82: 38" SCARECROW STAKE | C82: 6 | D82: 10.95 | E82: 65.7
A83: HM25112 | B83: 12" HARVEST WALL HANGER | C83: 12 | D83: 4.25 | E83: 51
A84: HM25114 | B84: 14" FALL LEAF PICKS 3/S | C84: 24 | D84: 1.35 | E84: 32.4
A85: HM25124 | B85: 24" PUMKIN WELCOME STAKE | C85: 6 | D85: 8.95 | E85: 53.7
A86: HM25219 | B86: 19" PUMKIN STAKE | C86: 6 | D86: 7.45 | E86: 44.7
A87: HM25224 | B87: 24" PUMKIN STAKE | C87: 6 | D87: 7.45 | E87: 44.7
A88: HM25236 | B88: 36" STACKING SCARECROW STAKE | C88: 6 | D88: 10.95 | E88: 65.7
A89: HR10106 | B89: 5" Small Hairy Rats in a cut case, 12/carton 2ASST | C89: 12 | D89: 2.35 | E89: 28.2
A90: HS14160 | B90: Hanging Hairy Spiders - 60" Spotted | C90: 6 | D90: 9.5 | E90: 57
A91: HS14260 | B91: Hanging Hairy Spiders - 60" black | C91: 6 | D91: 9.5 | E91: 57
A92: HS17007 | B92: 7IN LED SPIDER (2 BULBS) 3ASST YHAE91726 | C92: 12 | D92: 2.15 | E92: 25.8
A93: HS18061 | B93: 61" Poseable Standing Skeleton (with stand) | C93: 1 | D93: 39.95 | E93: =C93*D93 -> 39.95
A94: HS20028 | B94: 28" HANGING SKELETON | C94: 8 | D94: 5.25 | E94: =C94*D94 -> 42
A95: HS20062 | B95: 62" PIRATE SKELETON 1/S | C95: 1 | D95: 39.95 | E95: =C95*D95 -> 39.95
A96: HS21012 | B96: 12IN SPIDER W/ CLIP 6/S | C96: 12 | D96: 2.05 | E96: =D96*C96 -> 24.6
A97: HS21019 | B97: 19IN COLORFUL SPIDERS 3/S | C97: 12 | D97: 2.65 | E97: 31.8
A98: HS24018 | B98: 18" POSEABLE SKELETON | C98: 12 | D98: 2.25 | E98: 27
A99: HS24022 | B99: 22" Groundbreaker with LED Eyes | C99: 2 | D99: 18.95 | E99: 37.9
A100: HS25020 | B100: 20" COLORFUL SPIDERS | C100: 12 | D100: 2.65 | E100: 31.8
A101: HS25026 | B101: 26" Hanging Ghosts 3/S | C101: 12 | D101: 1.95 | E101: 23.4
A102: HS25032 | B102: 32" HALF SKELETON W/ RED EYES | C102: 1 | D102: 27.95 | E102: 26.95
A103: HS25034 | B103: 34" COLOFUL SPIDER | C103: 12 | D103: 4.95 | E103: =D103*C103 -> 59.4
A104: HS25079 | B104: 79" HANGING SKELETON LED EYES | C104: 1 | D104: 48 | E104: =D104*C104 -> 48
A105: HW16020 | B105: 20" WREATH | C105: 6 | D105: 16 | E105: =D105*C105 -> 96
A106: HW16022 | B106: 22" WREATH | C106: 6 | D106: 20 | E106: =D106*C106 -> 120
A107: HW20024 | B107: 24" HANGING WITCH 2/S | C107: 12 | D107: 2.15 | E107: =C107*D107 -> 25.8
A108: HW23018 | B108: 18" HANGING WITCH 3/S | C108: 12 | D108: 3.5 | E108: =D108*C108 -> 42
A109: HW23022 | B109: 22" WREATH | C109: 6 | D109: 11.5 | E109: =D109*C109 -> 69
A110: HW24016 | B110: 16" Scarecrow Wreath, 2 asst | C110: 12 | D110: 4 | E110: =D110*C110 -> 48
A111: HW24048 | B111: 48" HANGING WITCH 3/S | C111: 6 | D111: 7.45 | E111: =C111*D111 -> 44.7
A112: HW25080 | B112: 80" HANGING WITCH LED/SOUND 2/S | C112: 4 | D112: 16.95 | E112: =C112*D112 -> 67.8
A113: IF18002 | B113: 10" Spooky House Inflatable | C113: 1 | D113: 105 | E113: =D113*C113 -> 105
A114: IF20059 | B114: 9FT INFLATABLE PUMPKIN PATCH | C114: 1 | D114: 50 | E114: 50
A115: LB503 | B115: Super Stuff-A-Pumpkin Leaf Bag 1 - 45" x 48" bag W/ ties. | C115: 24 | D115: 0.95 | E115: 22.8
A116: PB100 | B116: WeatherProof Pumpkin Lot Pennants, 50ct | C116: 1 | D116: 11.95 | E116: 11.95
A117: PB200-A | B117: "Pumpkins" Banner 3' x 15' weatherproof | C117: 1 | D117: 41.95 | E117: 41.95
A118: PC024 | B118: Pumpkin Masters Carving Kit | C118: 24 | D118: 4.65 | E118: 111.6
A119: PC036 | B119: Pumpkin Masters Carving Kit | C119: 36 | D119: 4.55 | E119: 163.8
A120: PC093 | B120: PUMPKIN PARTS | C120: 10 | D120: 4.5 | E120: 45
A121: PC715 | B121: Bucket O Scoops 36 per bucket | C121: 36 | D121: 0.65 | E121: 23.4
A122: PCBCD | B122: Pumpkin Magic Fine Blade Carver | C122: 24 | D122: 0.72 | E122: 17.28
A123: PCBKT | B123: Pumpkin Magic Carver in a Bucket | C123: 48 | D123: 0.65 | E123: 31.2
A124: PCKIT15 | B124: 15PC CARVING KIT | C124: 24 | D124: 3.65 | E124: 87.6
A125: PM038 | B125: Strobe Light K50038 | C125: 24 | D125: 1.45 | E125: 34.8
A126: PM100 | B126: Carving Kit Floor Display - Large 72 Kits | C126: 1 | D126: 319 | E126: 319
A127: PM110 | B127: Power saw | C127: 12 | D127: 6.5 | E127: 78
A128: PM12KIT | B128: 12 Piece Carving Kit | C128: 12 | D128: 3.65 | E128: 43.8
A129: PM16KIT | B129: 16PC Carving Kit | C129: 12 | D129: 3.95 | E129: 47.4
A130: PM184 | B130: BARE BONES CARVING TOOLS | C130: 24 | D130: 2.2 | E130: 52.8
A131: PM501 | B131: KIDS CARVING KIT | C131: 12 | D131: 4.2 | E131: 50.4
A132: PM567 | B132: Carving Kit Floor Display - Small | C132: 1 | D132: 167 | E132: 167
A133: PM656 | B133: PREMIUM SCOOP | C133: 12 | D133: 6.5 | E133: 78
A134: PM657 | B134: STICKER PATTERNS | C134: 18 | D134: 3.25 | E134: 58.5
A135: PM714 | B135: FLOATING PUMPKIN CARVE & DISPLAY | C135: 12 | D135: 5.45 | E135: 65.4
A136: PM802 | B136: GRIMM REAPER CARVING TOOLS | C136: 12 | D136: 4.35 | E136: 52.2
A137: PM819 | B137: PARTY CARVING KIT | C137: 12 | D137: 6.95 | E137: 83.4
A138: PM8KIT | B138: Pumpkin Magic Carving Kit | C138: 12 | D138: 2.1 | E138: 25.2
A139: PMFD08 | B139: Pumpkin Magic Floor display | C139: 1 | D139: 319 | E139: 319
A140: PMPCKIT | B140: Pumpkin Magic Carving kit | C140: 12 | D140: 3.65 | E140: 43.8
A141: PMPCKIT32 | B141: Pumpkin Magic Carving kit 32pc display | C141: 1 | D141: 125 | E141: 125
A142: PPBCD | B142: Pumpkin Magic Paints 6 Acrylic non-toxic paints & brush | C142: 24 | D142: 2.15 | E142: 51.6
A143: PPGID | B143: Pumpkin Magic GID Paints | C143: 24 | D143: 3.25 | E143: 78
A144: PSKID | B144: Pumpkin Magic Kids Stickers | C144: 24 | D144: 2.2 | E144: 52.8
A145: RB40FO | B145: FALL ORANGE SATIN 100 YD | C145: 1 | D145: 10 | E145: 10
A146: RB40FP | B146: FALL PLAID SATIN 50 YD | C146: 1 | D146: 13 | E146: 13
A147: RBW40BPO | B147: ORANGE/BLACK PLAID 25 YD | C147: 1 | D147: 15 | E147: 15
A148: RBW40BWC | B148: BLACK WHITE CHECK 25 YD | C148: 1 | D148: 15 | E148: 15
A149: RBW40PAS | B149: WIRED PUMPKINS AND SPIDERS 25YD | C149: 1 | D149: 15 | E149: 15
A150: RBW40PPV | B150: WIRED PUMPKINS 25YD | C150: 1 | D150: 15 | E150: 15
A151: RBW40SCT | B151: WIRED SCARECROW TRUCK 25YD | C151: 1 | D151: 15 | E151: 15
A152: SC00159 | B152: Mr. & Mrs. Crow - 60" 3 each of 2 styles / wire arms | C152: 6 | D152: 7.95 | E152: 47.7
A153: SC10218 | B153: 18" ColorFall Bunch, 6 assorted | C153: 48 | D153: 1.05 | E153: 50.4
A154: SC14060 | B154: 60" Scarecrow Friends, 2 assorted / wire arms | C154: 6 | D154: 7.95 | E154: 47.7
A155: SC17248 | B155: 48" SCARECROW / wire arms ASST (4) | C155: 12 | D155: 5.5 | E155: 66
A156: SC18360 | B156: 60" PUMPKIN FACE SCARECROW / wire arms | C156: 6 | D156: 7.95 | E156: 47.7
A157: SC20014 | B157: 14" Scarecrow Pick, 4/S | C157: 48 | D157: 0.7 | E157: 33.6
A158: SC21055 | B158: 55" Scarecrow Assortment, 4 assorted / wire arms | C158: 12 | D158: 7.5 | E158: 90
A159: SC23036 | B159: 36" SCARECROW PICK 2/S | C159: 12 | D159: 3.5 | E159: 42
A160: SC23048 | B160: 48" SCARECROWS 2/S | C160: 12 | D160: 5.5 | E160: 66
A161: SC23060 | B161: 60" Scarecrow 2/S | C161: 6 | D161: 7.95 | E161: 47.7
A162: SC23124 | B162: 24" CROW PICK 3/S | C162: 24 | D162: 1.25 | E162: 30
A163: SC24048 | B163: 48" SCARECROW / wire arms ASST (2) | C163: 12 | D163: 5.5 | E163: 66
A164: SC24060 | B164: 60" Scarecrow 2/S | C164: 6 | D164: 7.95 | E164: 47.7
A165: SC25018 | B165: 18" Scarecrow 2/S | C165: 24 | D165: 1.05 | E165: 25.2
A166: SC25024 | B166: 24" pumpkin face pick 2/S | C166: 24 | D166: 1.25 | E166: 30
A167: SC25048 | B167: 48" Scarecrow 2/S wire arms | C167: 12 | D167: 5.5 | E167: 66
A168: SC25060 | B168: 60" scarecrow 2/S wire arms | C168: 6 | D168: 7.95 | E168: 47.7
A169: SC25148 | B169: 48" pumpkin face scarecrow 2/S | C169: 12 | D169: 5.5 | E169: 66
A170: SF11148 | B170: 48" Sunflower Trio, 3 assorted | C170: 6 | D170: 7.25 | E170: 43.5
A171: SF13130 | B171: 30" Sunflower- 3ASST WG16Q068-30 | C171: 12 | D171: 3.3 | E171: 39.6
A172: SF14013 | B172: 13" Sunflowers In A Bale, 4 Asst | C172: 24 | D172: 0.85 | E172: 20.4
A173: SF23024 | B173: 24" Sunflower Pick 2/s | C173: 24 | D173: 1.35 | E173: =D173*C173 -> 32.4
A174: SF24024 | B174: 24" Sunflower Pick 2/s | C174: 24 | D174: 1.35 | E174: 32.4
A175: SFF15001 | B175: SHARK FIN OPEN FLAG | C175: 1 | D175: 32 | E175: 32
A176: SFF15002 | B176: SHARK FIN PUMPKIN | C176: 1 | D176: 32 | E176: 32
A177: SFF15004 | B177: POLE & BASE 12' | C177: 1 | D177: 65 | E177: 65
A178: SFF16001 | B178: SHARK FIN CORN | C178: 1 | D178: 32 | E178: 32
A179: SFF16002 | B179: SHARK FIN APPLES | C179: 1 | D179: 32 | E179: 32
A180: SFF17001 | B180: SHARK FIN TOMATOES | C180: 1 | D180: 32 | E180: 32
A181: SFF18001 | B181: SHARK FIN PATRIOTIC | C181: 1 | D181: 32 | E181: 32
A182: SFF18003 | B182: SHARK FIN PRODUCE | C182: 1 | D182: 32 | E182: 32
A183: SFF18004 | B183: SHARK FIN SALE | C183: 1 | D183: 32 | E183: 32
A184: SFF20001 | B184: SHARK FIN STRAWBERRIES FLAG | C184: 1 | D184: 32 | E184: 32
A185: SG12160 | B185: 60" Ghost on stake with chimes, 6 each of 2 styles | C185: 12 | D185: 7.25 | E185: 87
A186: SG16072 | B186: 72" Standing Ghoul w/ Sound, Light Up Eyes & Lantern | C186: 1 | D186: 46.95 | E186: =C186*D186 -> 46.95
A187: SG18030 | B187: 30" Standing Halloween Greeters 3/S | C187: 6 | D187: 5.95 | E187: =D187*C187 -> 35.7
A188: SG21008 | B188: 8IN STANDING GHOST IN WOODEN CRATE | C188: 12 | D188: 2.35 | E188: 28.2
A189: SG22060 | B189: 60" HALLOWEEN STAKES 3/S | C189: 12 | D189: 6.95 | E189: 83.4
A190: SG23036 | B190: 36" HALLOWEEN STAKES 3/S | C190: 12 | D190: 3.5 | E190: 42
A191: SG24013 | B191: 13" Sitting Witch w/ PUMKIN 2/S | C191: 12 | D191: 2.5 | E191: 30
A192: SG25024 | B192: 24" Witch & Pumpkin Pick | C192: 24 | D192: 1.25 | E192: 30
A193: SG25036 | B193: 36" HALLOWEEN STAKES 3/S | C193: 12 | D193: 3.5 | E193: 42
A194: SG25067 | B194: 67" STANDING GHOUL W/ SOUND/LIGHT & MOTION | C194: 1 | D194: 33.95 | E194: =C194*D194 -> 33.95
A195: SG25070 | B195: 70" STANDING PUMPKIN GHOUL SOUND/LIGHT/MOTION | C195: 1 | D195: 32.95 | E195: =C195*D195 -> 32.95
A196: SS18060 | B196: 60" SITTING SCARECROW DELIVERED PRICE | C196: 6 | D196: 8.05 | E196: =D196*C196 -> 48.3
A197: SS20160 | B197: 60" SCARECROW GIRL SITTER 1/S DELIVERED PRICE | C197: 6 | D197: 8.05 | E197: 48.3
A198: SS21006 | B198: 6.5" Mini Scarecrows, 3/S | C198: 24 | D198: 1 | E198: 24
A199: SS23007 | B199: 7" MINI CROW 4/S | C199: 24 | D199: 1 | E199: 24
A200: SS23024 | B200: 24" SITTING SCARECROWS 2/S | C200: 12 | D200: 3.25 | E200: 39
... 34 more rows
